[Event "Titled Tuesday Blitz March 08 Early 2022"]
[White "Kuzmin, Roman"]
[Black "Bintang, Rasyid A. Hidayat"]
[WhiteFideId "44134932"]
[BlackFideId "7105355"]
[WhiteElo "1978"]
[BlackElo "2362"]
[Result "0-1"]
[Round "11"]
[TimeControl "180+1"]
[Date "2022.03.09"]
[WhiteClock "0:00:12"]
[BlackClock "0:00:19"]

1. e4 {[%clk 0:03:00]}  d5 {[%clk 0:02:59]} 2. exd5 {[%clk 0:03:00]}  Nf6 {[%clk 0:02:59]} 3. Bb5+ {[%clk 0:02:59]}  Bd7 {[%clk 0:02:58]} 4. Be2 {[%clk 0:02:59]}  Nxd5 {[%clk 0:02:56]} 5. d4 {[%clk 0:02:59]}  Bf5 {[%clk 0:02:55]} 6. c4 {[%clk 0:02:58]}  Nb6 {[%clk 0:02:54]} 7. Nc3 {[%clk 0:02:55]}  e5 {[%clk 0:02:48]} 8. dxe5 {[%clk 0:02:49]}  Qxd1+ {[%clk 0:02:49]} 9. Nxd1 {[%clk 0:02:49]}  Nc6 {[%clk 0:02:49]} 10. Nf3 {[%clk 0:02:40]}  Bb4+ {[%clk 0:02:48]} 11. Kf1 {[%clk 0:02:27]}  O-O-O {[%clk 0:02:37]} 12. a3 {[%clk 0:02:22]}  Be7 {[%clk 0:02:33]} 13. Be3 {[%clk 0:02:17]}  Bd3 {[%clk 0:02:31]} 14. Rc1 {[%clk 0:02:12]}  Rhe8 {[%clk 0:02:16]} 15. Bxd3 {[%clk 0:01:46]}  Rxd3 {[%clk 0:02:16]} 16. Ke2 {[%clk 0:01:47]}  Red8 {[%clk 0:02:13]} 17. Re1 {[%clk 0:01:43]}  Na5 {[%clk 0:02:09]} 18. Bxb6 {[%clk 0:01:34]}  axb6 {[%clk 0:02:07]} 19. Ne3 {[%clk 0:01:34]}  Nb3 {[%clk 0:02:04]} 20. Rc2 {[%clk 0:01:33]}  R3d7 {[%clk 0:01:25]} 21. Rd1 {[%clk 0:01:18]}  Bc5 {[%clk 0:01:14]} 22. Rxd7 {[%clk 0:01:07]}  Rxd7 {[%clk 0:01:15]} 23. Nf5 {[%clk 0:00:49]}  g6 {[%clk 0:01:08]} 24. Rc3 {[%clk 0:00:50]}  Nd4+ {[%clk 0:00:44]} 25. N5xd4 {[%clk 0:00:49]}  Bxd4 {[%clk 0:00:44]} 26. Nxd4 {[%clk 0:00:39]}  Rxd4 {[%clk 0:00:44]} 27. b3 {[%clk 0:00:37]}  g5 {[%clk 0:00:32]} 28. f3 {[%clk 0:00:26]}  Rh4 {[%clk 0:00:23]} 29. h3 {[%clk 0:00:24]}  h5 {[%clk 0:00:23]} 30. Rd3 {[%clk 0:00:20]}  g4 {[%clk 0:00:21]} 31. Rd4 {[%clk 0:00:14]}  gxf3+ {[%clk 0:00:18]} 32. Ke3 {[%clk 0:00:11]}  Rxd4 {[%clk 0:00:19]} 33. Kxd4 {[%clk 0:00:12]}  fxg2 {[%clk 0:00:19]} 0-1


[Site "https://www.chess.com"]

[Event "Titled Tuesday Blitz March 08 Early 2022"]
[White "Lauridsen, Jesper Morch"]
[Black "Gombocz, Ferenc Jr."]
[WhiteFideId "1401890"]
[BlackFideId "775029"]
[WhiteElo "2260"]
[BlackElo "1913"]
[Result "0-1"]
[Round "11"]
[TimeControl "180+1"]
[Date "2022.03.09"]
[WhiteClock "0:00:04"]
[BlackClock "0:00:04"]

1. e4 {[%clk 0:02:48]}  e5 {[%clk 0:02:59]} 2. d4 {[%clk 0:02:44]}  exd4 {[%clk 0:02:58]} 3. Qxd4 {[%clk 0:02:44]}  Nc6 {[%clk 0:02:58]} 4. Qe3 {[%clk 0:02:43]}  Nf6 {[%clk 0:02:57]} 5. Nc3 {[%clk 0:02:42]}  Bb4 {[%clk 0:02:56]} 6. Bd2 {[%clk 0:02:41]}  O-O {[%clk 0:02:56]} 7. O-O-O {[%clk 0:02:41]}  Re8 {[%clk 0:02:56]} 8. Qg3 {[%clk 0:02:39]}  Nxe4 {[%clk 0:02:51]} 9. Nxe4 {[%clk 0:02:39]}  Rxe4 {[%clk 0:02:50]} 10. c3 {[%clk 0:02:39]}  Bd6 {[%clk 0:02:49]} 11. f4 {[%clk 0:02:19]}  Qf6 {[%clk 0:02:42]} 12. Nh3 {[%clk 0:02:12]}  Bc5 {[%clk 0:02:28]} 13. Bd3 {[%clk 0:02:07]}  Re8 {[%clk 0:02:27]} 14. Rhe1 {[%clk 0:01:54]}  Rf8 {[%clk 0:02:26]} 15. Ng5 {[%clk 0:01:41]}  g6 {[%clk 0:02:17]} 16. Ne4 {[%clk 0:01:04]}  Qe7 {[%clk 0:02:11]} 17. f5 {[%clk 0:00:54]}  Bd6 {[%clk 0:02:00]} 18. f6 {[%clk 0:00:42]}  Qxe4 {[%clk 0:01:59]} 19. Qh3 {[%clk 0:00:20]}  Qf4 {[%clk 0:01:05]} 20. Bxf4 {[%clk 0:00:16]}  Bxf4+ {[%clk 0:01:05]} 21. Kb1 {[%clk 0:00:16]}  d5 {[%clk 0:01:04]} 22. g4 {[%clk 0:00:15]}  Ne5 {[%clk 0:01:02]} 23. Rxe5 {[%clk 0:00:14]}  Bxe5 {[%clk 0:01:02]} 24. Rf1 {[%clk 0:00:14]}  Kh8 {[%clk 0:00:52]} 25. Rf3 {[%clk 0:00:13]}  Rg8 {[%clk 0:00:46]} 26. Qh4 {[%clk 0:00:11]}  h5 {[%clk 0:00:35]} 27. Qg5 {[%clk 0:00:10]}  Kh7 {[%clk 0:00:34]} 28. Qxe5 {[%clk 0:00:08]}  Bxg4 {[%clk 0:00:33]} 29. Rg3 {[%clk 0:00:07]}  Rae8 {[%clk 0:00:32]} 30. Qg5 {[%clk 0:00:07]}  Re1+ {[%clk 0:00:31]} 31. Kc2 {[%clk 0:00:07]}  Bd1+ {[%clk 0:00:30]} 32. Kd2 {[%clk 0:00:07]}  Rf1 {[%clk 0:00:22]} 33. Rh3 {[%clk 0:00:07]}  Re8 {[%clk 0:00:16]} 34. Rxh5+ {[%clk 0:00:07]}  Bxh5 {[%clk 0:00:15]} 35. Qxh5+ {[%clk 0:00:06]}  Kg8 {[%clk 0:00:16]} 36. Bxg6 {[%clk 0:00:06]}  Rf2+ {[%clk 0:00:13]} 37. Kd3 {[%clk 0:00:06]}  Rxf6 {[%clk 0:00:09]} 38. Qh7+ {[%clk 0:00:06]}  Kf8 {[%clk 0:00:09]} 39. Qh6+ {[%clk 0:00:06]}  Ke7 {[%clk 0:00:09]} 40. Qg5 {[%clk 0:00:05]}  fxg6 {[%clk 0:00:08]} 41. Qe5+ {[%clk 0:00:05]}  Kf7 {[%clk 0:00:07]} 42. Qxc7+ {[%clk 0:00:05]}  Re7 {[%clk 0:00:08]} 43. Qc5 {[%clk 0:00:05]}  Rf3+ {[%clk 0:00:07]} 44. Kc2 {[%clk 0:00:05]}  Re2+ {[%clk 0:00:04]} 45. Kb3 {[%clk 0:00:05]}  Rff2 {[%clk 0:00:04]} 46. Qxd5+ {[%clk 0:00:05]}  Kf6 {[%clk 0:00:03]} 47. Qxb7 {[%clk 0:00:05]}  Rxb2+ {[%clk 0:00:03]} 48. Kc4 {[%clk 0:00:04]}  Rxb7 {[%clk 0:00:04]} 0-1


[Site "https://www.chess.com"]

[Event "Titled Tuesday Blitz March 08 Early 2022"]
[White "Lazavik, Denis"]
[Black "Jobava, Baadur"]
[WhiteFideId "13515110"]
[BlackFideId "13601520"]
[WhiteElo "2437"]
[BlackElo "2617"]
[Result "0-1"]
[Round "11"]
[TimeControl "180+1"]
[Date "2022.03.08"]
[WhiteClock "0:01:26"]
[BlackClock "0:01:33"]

1. d4 {[%clk 0:03:00]}  d5 {[%clk 0:02:22]} 2. c4 {[%clk 0:02:55]}  dxc4 {[%clk 0:02:23]} 3. Nf3 {[%clk 0:02:55]}  Nf6 {[%clk 0:02:21]} 4. e3 {[%clk 0:02:55]}  Bg4 {[%clk 0:02:20]} 5. Bxc4 {[%clk 0:02:55]}  e6 {[%clk 0:02:21]} 6. Nc3 {[%clk 0:02:55]}  Nc6 {[%clk 0:02:13]} 7. h3 {[%clk 0:02:51]}  Bh5 {[%clk 0:02:13]} 8. O-O {[%clk 0:02:50]}  Bd6 {[%clk 0:02:12]} 9. Re1 {[%clk 0:02:42]}  O-O {[%clk 0:02:12]} 10. g4 {[%clk 0:02:42]}  Nxg4 {[%clk 0:02:10]} 11. hxg4 {[%clk 0:02:41]}  Bxg4 {[%clk 0:02:11]} 12. Be2 {[%clk 0:02:19]}  f5 {[%clk 0:02:11]} 13. d5 {[%clk 0:02:13]}  Rf6 {[%clk 0:02:00]} 14. Nd4 {[%clk 0:01:32]}  Bh3 {[%clk 0:01:33]} 15. Bh5 {[%clk 0:01:26]}  Rg6+ {[%clk 0:01:33]} 0-1


[Site "https://www.chess.com"]

[Event "Titled Tuesday Blitz March 08 Early 2022"]
[White "Leve, Nitai"]
[Black "Agasarov, Benik"]
[WhiteFideId "2006898"]
[BlackFideId "13314823"]
[WhiteElo "2144"]
[BlackElo "2551"]
[Result "0-1"]
[Round "11"]
[TimeControl "180+1"]
[Date "2022.03.09"]
[WhiteClock "0:01:21"]
[BlackClock "0:01:14"]

1. e4 {[%clk 0:03:00]}  c5 {[%clk 0:02:58]} 2. Nf3 {[%clk 0:02:59]}  e6 {[%clk 0:02:58]} 3. d4 {[%clk 0:03:00]}  cxd4 {[%clk 0:02:57]} 4. Nxd4 {[%clk 0:03:01]}  Nf6 {[%clk 0:02:56]} 5. Nc3 {[%clk 0:03:01]}  Nc6 {[%clk 0:02:54]} 6. Nxc6 {[%clk 0:03:01]}  bxc6 {[%clk 0:02:53]} 7. e5 {[%clk 0:03:02]}  Nd5 {[%clk 0:02:53]} 8. Ne4 {[%clk 0:03:01]}  Qc7 {[%clk 0:02:53]} 9. f4 {[%clk 0:03:01]}  Qb6 {[%clk 0:02:50]} 10. c4 {[%clk 0:03:01]}  Bb4+ {[%clk 0:02:45]} 11. Ke2 {[%clk 0:03:01]}  Ba6 {[%clk 0:02:31]} 12. Kf3 {[%clk 0:02:56]}  O-O {[%clk 0:02:29]} 13. cxd5 {[%clk 0:02:52]}  cxd5 {[%clk 0:02:29]} 14. Ng5 {[%clk 0:02:43]}  f6 {[%clk 0:02:25]} 15. Be3 {[%clk 0:02:33]}  d4 {[%clk 0:02:09]} 16. Bxd4 {[%clk 0:02:22]}  Qb7+ {[%clk 0:02:06]} 17. Ne4 {[%clk 0:02:19]}  f5 {[%clk 0:02:02]} 18. Bxa6 {[%clk 0:02:16]}  fxe4+ {[%clk 0:02:01]} 19. Ke3 {[%clk 0:02:08]}  Qxa6 {[%clk 0:02:00]} 20. Rc1 {[%clk 0:02:03]}  Qxa2 {[%clk 0:01:58]} 21. Rc7 {[%clk 0:01:58]}  Qd5 {[%clk 0:01:42]} 22. Qa4 {[%clk 0:01:56]}  Rab8 {[%clk 0:01:31]} 23. Rxd7 {[%clk 0:01:52]}  Qc4 {[%clk 0:01:30]} 24. Rd1 {[%clk 0:01:46]}  Bd2+ {[%clk 0:01:28]} 25. Rxd2 {[%clk 0:01:34]}  Qxa4 {[%clk 0:01:27]} 26. Rxa7 {[%clk 0:01:34]}  Rb3+ {[%clk 0:01:27]} 27. Kf2 {[%clk 0:01:32]}  Qb4 {[%clk 0:01:20]} 28. Bc3 {[%clk 0:01:21]}  e3+ {[%clk 0:01:14]} 0-1


[Site "https://www.chess.com"]

[Event "Titled Tuesday Blitz March 08 Early 2022"]
[White "Levine, David"]
[Black "Kostiukov, Alexandr"]
[WhiteFideId "2011611"]
[BlackFideId "14108100"]
[WhiteElo "2174"]
[BlackElo "2202"]
[Result "0-1"]
[Round "11"]
[TimeControl "180+1"]
[Date "2022.03.09"]
[WhiteClock "0:00:12"]
[BlackClock "0:00:23"]

1. d4 {[%clk 0:02:56]}  g6 {[%clk 0:01:22]} 2. c4 {[%clk 0:02:53]}  Bg7 {[%clk 0:01:22]} 3. g3 {[%clk 0:02:53]}  d6 {[%clk 0:01:20]} 4. Bg2 {[%clk 0:02:53]}  e5 {[%clk 0:01:20]} 5. dxe5 {[%clk 0:02:50]}  dxe5 {[%clk 0:01:21]} 6. Qxd8+ {[%clk 0:02:49]}  Kxd8 {[%clk 0:01:22]} 7. Nf3 {[%clk 0:02:48]}  f6 {[%clk 0:01:21]} 8. Nc3 {[%clk 0:02:47]}  Be6 {[%clk 0:01:21]} 9. b3 {[%clk 0:02:43]}  Nd7 {[%clk 0:01:21]} 10. Ba3 {[%clk 0:02:33]}  Bf8 {[%clk 0:01:20]} 11. Bxf8 {[%clk 0:02:24]}  Nxf8 {[%clk 0:01:19]} 12. O-O-O+ {[%clk 0:02:23]}  Nd7 {[%clk 0:01:04]} 13. h4 {[%clk 0:02:22]}  h5 {[%clk 0:01:03]} 14. Ne4 {[%clk 0:02:15]}  Ke7 {[%clk 0:00:58]} 15. Bh3 {[%clk 0:02:06]}  Nh6 {[%clk 0:00:54]} 16. Bxe6 {[%clk 0:02:01]}  Kxe6 {[%clk 0:00:55]} 17. Rd2 {[%clk 0:01:59]}  Rad8 {[%clk 0:00:50]} 18. Rhd1 {[%clk 0:01:58]}  Nf7 {[%clk 0:00:49]} 19. Kc2 {[%clk 0:01:53]}  b6 {[%clk 0:00:47]} 20. Kc3 {[%clk 0:01:52]}  Ke7 {[%clk 0:00:41]} 21. e3 {[%clk 0:01:31]}  f5 {[%clk 0:00:39]} 22. Neg5 {[%clk 0:01:31]}  Nd6 {[%clk 0:00:39]} 23. e4 {[%clk 0:01:19]}  Nc5 {[%clk 0:00:38]} 24. Nxe5 {[%clk 0:01:02]}  Ndxe4+ {[%clk 0:00:29]} 25. Nxe4 {[%clk 0:01:01]}  Nxe4+ {[%clk 0:00:29]} 26. Kc2 {[%clk 0:00:39]}  Rxd2+ {[%clk 0:00:22]} 27. Rxd2 {[%clk 0:00:39]}  Kf6 {[%clk 0:00:18]} 28. Nd7+ {[%clk 0:00:38]}  Ke6 {[%clk 0:00:19]} 29. Rd4 {[%clk 0:00:29]}  Rd8 {[%clk 0:00:17]} 30. f3 {[%clk 0:00:22]}  Rxd7 {[%clk 0:00:16]} 31. Rxd7 {[%clk 0:00:21]}  Kxd7 {[%clk 0:00:17]} 32. fxe4 {[%clk 0:00:21]}  fxe4 {[%clk 0:00:18]} 33. Kc3 {[%clk 0:00:21]}  Ke6 {[%clk 0:00:17]} 34. Kd4 {[%clk 0:00:21]}  Kf5 {[%clk 0:00:18]} 35. Ke3 {[%clk 0:00:20]}  Kg4 {[%clk 0:00:17]} 36. Kxe4 {[%clk 0:00:10]}  Kxg3 {[%clk 0:00:18]} 37. Kd5 {[%clk 0:00:10]}  Kxh4 {[%clk 0:00:18]} 38. Kc6 {[%clk 0:00:11]}  g5 {[%clk 0:00:19]} 39. Kxc7 {[%clk 0:00:11]}  g4 {[%clk 0:00:20]} 40. b4 {[%clk 0:00:11]}  g3 {[%clk 0:00:21]} 41. c5 {[%clk 0:00:12]}  g2 {[%clk 0:00:22]} 42. c6 {[%clk 0:00:12]}  g1=Q {[%clk 0:00:23]} 43. Kb7 {[%clk 0:00:12]}  Qc1 {[%clk 0:00:22]} 44. b5 {[%clk 0:00:11]}  Kg5 {[%clk 0:00:22]} 45. Kxa7 {[%clk 0:00:12]}  h4 {[%clk 0:00:21]} 46. Kxb6 {[%clk 0:00:12]}  h3 {[%clk 0:00:22]} 47. c7 {[%clk 0:00:12]}  h2 {[%clk 0:00:22]} 48. Kb7 {[%clk 0:00:12]}  h1=Q+ {[%clk 0:00:23]} 0-1


[Site "https://www.chess.com"]

[Event "Titled Tuesday Blitz March 08 Early 2022"]
[White "Ljukin, Sergei"]
[Black "Shuvalova, Polina"]
[WhiteFideId "14102200"]
[BlackFideId "24171760"]
[WhiteElo "2312"]
[BlackElo "2355"]
[Result "1-0"]
[Round "11"]
[TimeControl "180+1"]
[Date "2022.03.09"]
[WhiteClock "0:01:23"]
[BlackClock "0:01:26"]

1. e4 {[%clk 0:02:57]}  c5 {[%clk 0:02:59]} 2. Nf3 {[%clk 0:02:55]}  d6 {[%clk 0:02:59]} 3. d4 {[%clk 0:02:56]}  cxd4 {[%clk 0:03:00]} 4. Nxd4 {[%clk 0:02:56]}  Nf6 {[%clk 0:03:01]} 5. Nc3 {[%clk 0:02:57]}  Nc6 {[%clk 0:03:02]} 6. Bc4 {[%clk 0:02:56]}  e6 {[%clk 0:02:59]} 7. Be3 {[%clk 0:02:56]}  Be7 {[%clk 0:02:57]} 8. Qe2 {[%clk 0:02:56]}  Bd7 {[%clk 0:02:55]} 9. O-O-O {[%clk 0:02:56]}  Rc8 {[%clk 0:02:53]} 10. Bb3 {[%clk 0:02:56]}  Na5 {[%clk 0:02:52]} 11. g4 {[%clk 0:02:55]}  a6 {[%clk 0:02:47]} 12. g5 {[%clk 0:02:54]}  Ng8 {[%clk 0:02:46]} 13. f4 {[%clk 0:02:53]}  b5 {[%clk 0:02:46]} 14. Kb1 {[%clk 0:02:46]}  Nc4 {[%clk 0:02:45]} 15. Bc1 {[%clk 0:02:42]}  Qa5 {[%clk 0:02:32]} 16. h4 {[%clk 0:02:37]}  Bd8 {[%clk 0:02:30]} 17. f5 {[%clk 0:02:34]}  Ne7 {[%clk 0:02:27]} 18. fxe6 {[%clk 0:02:32]}  fxe6 {[%clk 0:02:26]} 19. Rhf1 {[%clk 0:02:32]}  Nc6 {[%clk 0:02:07]} 20. Nxc6 {[%clk 0:02:28]}  Bxc6 {[%clk 0:02:02]} 21. Bxc4 {[%clk 0:02:08]}  bxc4 {[%clk 0:01:59]} 22. Rxd6 {[%clk 0:02:07]}  Ke7 {[%clk 0:01:48]} 23. Rxe6+ {[%clk 0:01:30]}  Kxe6 {[%clk 0:01:45]} 24. Qg4+ {[%clk 0:01:31]}  Ke7 {[%clk 0:01:37]} 25. Qxc8 {[%clk 0:01:28]}  Qc7 {[%clk 0:01:34]} 26. Qf5 {[%clk 0:01:24]}  Kd6 {[%clk 0:01:26]} 27. Bf4+ {[%clk 0:01:23]} 1-0


[Site "https://www.chess.com"]

[Event "Titled Tuesday Blitz March 08 Early 2022"]
[White "Maevsky, Nikolay"]
[Black "Rodchenkov, Sergey D."]
[WhiteFideId "4198220"]
[BlackFideId "4168712"]
[WhiteElo "2126"]
[BlackElo "2306"]
[Result "1-0"]
[Round "11"]
[TimeControl "180+1"]
[Date "2022.03.09"]
[WhiteClock "0:00:06"]
[BlackClock "0:00:05"]

1. d4 {[%clk 0:02:58]}  d5 {[%clk 0:02:59]} 2. Nf3 {[%clk 0:02:57]}  Nf6 {[%clk 0:03:00]} 3. e3 {[%clk 0:02:58]}  c5 {[%clk 0:02:59]} 4. c3 {[%clk 0:02:57]}  e6 {[%clk 0:02:58]} 5. Nbd2 {[%clk 0:02:57]}  b6 {[%clk 0:02:58]} 6. Bd3 {[%clk 0:02:54]}  Bb7 {[%clk 0:02:58]} 7. O-O {[%clk 0:02:40]}  Be7 {[%clk 0:02:57]} 8. Re1 {[%clk 0:02:39]}  Ne4 {[%clk 0:02:47]} 9. Bb5+ {[%clk 0:02:36]}  Kf8 {[%clk 0:02:27]} 10. Nxe4 {[%clk 0:02:30]}  dxe4 {[%clk 0:02:28]} 11. Nd2 {[%clk 0:02:23]}  g6 {[%clk 0:02:19]} 12. b3 {[%clk 0:02:16]}  Kg7 {[%clk 0:02:13]} 13. dxc5 {[%clk 0:02:08]}  bxc5 {[%clk 0:02:14]} 14. Bb2 {[%clk 0:02:07]}  Bf6 {[%clk 0:02:12]} 15. Qc2 {[%clk 0:02:03]}  Qd5 {[%clk 0:02:10]} 16. Bc4 {[%clk 0:02:01]}  Qf5 {[%clk 0:02:08]} 17. Bf1 {[%clk 0:01:50]}  Nd7 {[%clk 0:02:02]} 18. Rad1 {[%clk 0:01:47]}  Ne5 {[%clk 0:02:00]} 19. Nc4 {[%clk 0:01:38]}  Nxc4 {[%clk 0:00:57]} 20. Bxc4 {[%clk 0:01:37]}  Rad8 {[%clk 0:00:55]} 21. Be2 {[%clk 0:01:32]}  h5 {[%clk 0:00:52]} 22. c4 {[%clk 0:01:30]}  Be5 {[%clk 0:00:41]} 23. Rd2 {[%clk 0:01:16]}  Qf6 {[%clk 0:00:36]} 24. Bxe5 {[%clk 0:01:15]}  Qxe5 {[%clk 0:00:37]} 25. Red1 {[%clk 0:01:14]}  Rxd2 {[%clk 0:00:34]} 26. Qxd2 {[%clk 0:01:13]}  h4 {[%clk 0:00:29]} 27. h3 {[%clk 0:01:13]}  Bc6 {[%clk 0:00:23]} 28. Qa5 {[%clk 0:00:52]}  Ra8 {[%clk 0:00:09]} 29. Bf1 {[%clk 0:00:35]}  Kf6 {[%clk 0:00:06]} 30. a3 {[%clk 0:00:24]}  g5 {[%clk 0:00:06]} 31. Rd8 {[%clk 0:00:17]}  Rxd8 {[%clk 0:00:03]} 32. Qxd8+ {[%clk 0:00:17]}  Kg6 {[%clk 0:00:04]} 33. Qg8+ {[%clk 0:00:16]}  Kf6 {[%clk 0:00:04]} 34. Qh8+ {[%clk 0:00:16]}  Kf5 {[%clk 0:00:04]} 35. Qh7+ {[%clk 0:00:16]}  Kf6 {[%clk 0:00:04]} 36. Qh6+ {[%clk 0:00:14]}  Ke7 {[%clk 0:00:04]} 37. Qh7 {[%clk 0:00:13]}  Qc7 {[%clk 0:00:04]} 38. Qg7 {[%clk 0:00:13]}  Kd6 {[%clk 0:00:01]} 39. Qxg5 {[%clk 0:00:11]}  Qb7 {[%clk 0:00:01]} 40. Qf4+ {[%clk 0:00:10]}  Ke7 {[%clk 0:00:02]} 41. Qxh4+ {[%clk 0:00:10]}  Kd7 {[%clk 0:00:03]} 42. Qf6 {[%clk 0:00:10]}  Qxb3 {[%clk 0:00:02]} 43. Qxf7+ {[%clk 0:00:10]}  Kd6 {[%clk 0:00:03]} 44. Qf8+ {[%clk 0:00:10]}  Kc7 {[%clk 0:00:02]} 45. Qe7+ {[%clk 0:00:10]}  Kb6 {[%clk 0:00:02]} 46. Qxe6 {[%clk 0:00:09]}  Qxa3 {[%clk 0:00:02]} 47. g4 {[%clk 0:00:07]}  Qb4 {[%clk 0:00:02]} 48. g5 {[%clk 0:00:07]}  a5 {[%clk 0:00:02]} 49. g6 {[%clk 0:00:07]}  Qc3 {[%clk 0:00:02]} 50. Qf7 {[%clk 0:00:07]}  Qe5 {[%clk 0:00:02]} 51. g7 {[%clk 0:00:06]}  Qg5+ {[%clk 0:00:03]} 52. Bg2 {[%clk 0:00:06]}  Bd7 {[%clk 0:00:01]} 53. g8=Q {[%clk 0:00:06]}  Qxg8 {[%clk 0:00:02]} 54. Qxg8 {[%clk 0:00:06]}  a4 {[%clk 0:00:03]} 55. Qd5 {[%clk 0:00:06]}  a3 {[%clk 0:00:04]} 56. Qxd7 {[%clk 0:00:05]}  a2 {[%clk 0:00:05]} 57. Qa4 {[%clk 0:00:06]}  a1=Q+ {[%clk 0:00:05]} 58. Qxa1 {[%clk 0:00:06]}  Kc6 {[%clk 0:00:05]} 59. Bxe4+ {[%clk 0:00:06]} 1-0


[Site "https://www.chess.com"]

[Event "Titled Tuesday Blitz March 08 Early 2022"]
[White "Maksimovic, Bojan"]
[Black "Taichman, Ori"]
[WhiteFideId "14408120"]
[BlackFideId "2804069"]
[WhiteElo "2448"]
[BlackElo "2227"]
[Result "1-0"]
[Round "11"]
[TimeControl "180+1"]
[Date "2022.03.09"]
[WhiteClock "0:02:14"]
[BlackClock "0:02:02"]

1. Nf3 {[%clk 0:03:00]}  g6 {[%clk 0:02:54]} 2. Ng1 {[%clk 0:03:01]}  Bg7 {[%clk 0:02:55]} 3. Nf3 {[%clk 0:03:01]}  Nf6 {[%clk 0:02:54]} 4. Ng1 {[%clk 0:03:01]}  O-O {[%clk 0:02:55]} 5. Nf3 {[%clk 0:03:02]}  d5 {[%clk 0:02:53]} 6. Ng1 {[%clk 0:03:02]}  e5 {[%clk 0:02:53]} 7. g3 {[%clk 0:03:02]}  c5 {[%clk 0:02:53]} 8. Bg2 {[%clk 0:03:03]}  Nc6 {[%clk 0:02:53]} 9. d3 {[%clk 0:03:03]}  Be6 {[%clk 0:02:54]} 10. Nd2 {[%clk 0:03:02]}  Qd7 {[%clk 0:02:49]} 11. e3 {[%clk 0:03:00]}  d4 {[%clk 0:02:48]} 12. e4 {[%clk 0:02:59]}  Nh5 {[%clk 0:02:44]} 13. Ngf3 {[%clk 0:02:58]}  h6 {[%clk 0:02:40]} 14. O-O {[%clk 0:02:56]}  f5 {[%clk 0:02:40]} 15. Nh4 {[%clk 0:02:53]}  Kh7 {[%clk 0:02:34]} 16. exf5 {[%clk 0:02:51]}  Bxf5 {[%clk 0:02:34]} 17. Nxf5 {[%clk 0:02:52]}  Qxf5 {[%clk 0:02:26]} 18. g4 {[%clk 0:02:48]}  Qe6 {[%clk 0:02:17]} 19. gxh5 {[%clk 0:02:48]}  Rg8 {[%clk 0:02:16]} 20. hxg6+ {[%clk 0:02:42]}  Qxg6 {[%clk 0:02:16]} 21. Kh1 {[%clk 0:02:41]}  Kh8 {[%clk 0:02:16]} 22. Be4 {[%clk 0:02:40]}  Qf7 {[%clk 0:02:17]} 23. Nf3 {[%clk 0:02:40]}  Raf8 {[%clk 0:02:15]} 24. Nh4 {[%clk 0:02:39]}  Bf6 {[%clk 0:02:15]} 25. Nf5 {[%clk 0:02:33]}  Bg5 {[%clk 0:02:14]} 26. Nxh6 {[%clk 0:02:22]}  Bxh6 {[%clk 0:02:04]} 27. Bxh6 {[%clk 0:02:23]}  Re8 {[%clk 0:02:03]} 28. Rg1 {[%clk 0:02:21]}  Ne7 {[%clk 0:02:02]} 29. Bg5 {[%clk 0:02:17]}  Nf5 {[%clk 0:02:02]} 30. Bxf5 {[%clk 0:02:13]}  Qxf5 {[%clk 0:02:02]} 31. Qh5+ {[%clk 0:02:14]} 1-0


[Site "https://www.chess.com"]

[Event "Titled Tuesday Blitz March 08 Early 2022"]
[White "Mayaud, Raphael"]
[Black "Sailer, Mike"]
[WhiteFideId "627151"]
[BlackFideId "2012901"]
[WhiteElo "2191"]
[BlackElo "2109"]
[Result "1-0"]
[Round "11"]
[TimeControl "180+1"]
[Date "2022.03.09"]
[WhiteClock "0:00:04"]
[BlackClock "0:00:05"]

1. d4 {[%clk 0:03:00]}  d5 {[%clk 0:02:58]} 2. c4 {[%clk 0:03:00]}  Bf5 {[%clk 0:02:57]} 3. Nc3 {[%clk 0:02:58]}  e6 {[%clk 0:02:57]} 4. Nf3 {[%clk 0:02:54]}  Nc6 {[%clk 0:02:55]} 5. a3 {[%clk 0:02:51]}  Nf6 {[%clk 0:02:53]} 6. Bf4 {[%clk 0:02:49]}  Be7 {[%clk 0:02:52]} 7. e3 {[%clk 0:02:48]}  a6 {[%clk 0:02:52]} 8. Be2 {[%clk 0:02:43]}  O-O {[%clk 0:02:51]} 9. O-O {[%clk 0:02:43]}  Ne4 {[%clk 0:02:50]} 10. Rc1 {[%clk 0:02:35]}  Nxc3 {[%clk 0:02:43]} 11. Rxc3 {[%clk 0:02:34]}  Rc8 {[%clk 0:02:27]} 12. cxd5 {[%clk 0:02:17]}  Qxd5 {[%clk 0:02:26]} 13. Qb3 {[%clk 0:01:51]}  Qxb3 {[%clk 0:02:23]} 14. Rxb3 {[%clk 0:01:51]}  Na5 {[%clk 0:02:21]} 15. Rc3 {[%clk 0:01:49]}  c5 {[%clk 0:02:17]} 16. dxc5 {[%clk 0:01:45]}  Bf6 {[%clk 0:01:52]} 17. Nd4 {[%clk 0:01:38]}  Be4 {[%clk 0:01:33]} 18. Bd6 {[%clk 0:01:18]}  Rfd8 {[%clk 0:01:27]} 19. Rd1 {[%clk 0:00:39]}  b6 {[%clk 0:01:06]} 20. b4 {[%clk 0:00:38]}  Nb7 {[%clk 0:00:47]} 21. Bxa6 {[%clk 0:00:15]}  Nxd6 {[%clk 0:00:48]} 22. Bxc8 {[%clk 0:00:15]}  Rxc8 {[%clk 0:00:48]} 23. Rcc1 {[%clk 0:00:12]}  bxc5 {[%clk 0:00:45]} 24. bxc5 {[%clk 0:00:13]}  Bxd4 {[%clk 0:00:26]} 25. exd4 {[%clk 0:00:11]}  Nb5 {[%clk 0:00:23]} 26. f3 {[%clk 0:00:11]}  Bd5 {[%clk 0:00:22]} 27. Rd3 {[%clk 0:00:10]}  Ra8 {[%clk 0:00:21]} 28. Rb1 {[%clk 0:00:07]}  Bc4 {[%clk 0:00:10]} 29. Re3 {[%clk 0:00:05]}  g6 {[%clk 0:00:10]} 30. Rb4 {[%clk 0:00:03]}  Nxa3 {[%clk 0:00:07]} 31. Rxa3 {[%clk 0:00:02]}  Rxa3 {[%clk 0:00:08]} 32. Rxc4 {[%clk 0:00:02]}  Kf8 {[%clk 0:00:07]} 33. Kf2 {[%clk 0:00:02]}  Ke7 {[%clk 0:00:07]} 34. Kg3 {[%clk 0:00:02]}  Kd7 {[%clk 0:00:08]} 35. h4 {[%clk 0:00:02]}  Kc6 {[%clk 0:00:08]} 36. Kf4 {[%clk 0:00:02]}  Kd5 {[%clk 0:00:08]} 37. Rc2 {[%clk 0:00:01]}  Ra4 {[%clk 0:00:07]} 38. c6 {[%clk 0:00:01]}  Rxd4+ {[%clk 0:00:06]} 39. Ke3 {[%clk 0:00:02]}  Ra4 {[%clk 0:00:03]} 40. c7 {[%clk 0:00:02]}  Ra3+ {[%clk 0:00:03]} 41. Kf2 {[%clk 0:00:02]}  Ra8 {[%clk 0:00:04]} 42. c8=Q {[%clk 0:00:02]}  Rxc8 {[%clk 0:00:04]} 43. Rxc8 {[%clk 0:00:03]}  Ke5 {[%clk 0:00:05]} 44. Rf8 {[%clk 0:00:04]} 1-0


[Site "https://www.chess.com"]